fUST/lending_fUST_20250311
["ID","MTS","AMOUNT","RATE_DAILY","PERIOD"]
[355874624,1741668634254,1812.38219516,0.00041681,15]
[355874668,1741668635678,-150.0,0.00043836,10]
[355874670,1741668635688,-1963.41404475,0.00044181,19]
[355874672,1741668635697,-151.0,0.00044384,10]
[355874673,1741668635706,-160.0,0.00044689,3]
[355874674,1741668635716,-229.22522159,0.00044932,10]
[355874676,1741668635726,-160.0,0.00045473,4]
[355874678,1741668635735,-182.44879604,0.00046043,120]
[355874680,1741668635745,-163.63040463,0.00046143,2]
[355874682,1741668635754,-163.63040463,0.0004615,2]
[355874684,1741668635763,-158.738746,0.00046156,2]
[355874685,1741668635772,-163.63040463,0.00046156,2]
[355874686,1741668635783,-416.66666667,0.00046204,2]
[355874687,1741668635792,-600.0,0.00046215,2]
[355874688,1741668635802,-15572.92107546,0.00046216,2]
[355874689,1741668635811,-165.77,0.00046223,2]
[355874690,1741668635820,-165.77,0.0004623,2]
[355874692,1741668635830,-165.77,0.0004623,2]
[355874694,1741668635840,-165.77,0.00046232,2]
[355874696,1741668635850,-8005.94242896,0.00046233,4]
[355874698,1741668635860,-1058.64,0.00046233,10]
[355874700,1741668635869,-500.0,0.0004624,2]
[355874701,1741668635878,-588.52893888,0.0004624,120]
[355874702,1741668635888,-500.0,0.0004624,2]
[355874703,1741668635898,-500.0,0.0004624,2]
[355874705,1741668635907,-500.0,0.0004624,2]
[355874707,1741668635917,-500.0,0.0004624,2]
[355874709,1741668635928,-500.0,0.0004624,2]
[355874711,1741668635938,-500.0,0.0004624,2]
[355874712,1741668635949,-500.0,0.0004624,2]
[355874714,1741668635958,-500.0,0.0004624,2]
[355874716,1741668635967,-500.0,0.0004624,2]
[355874718,1741668635977,-500.0,0.0004624,2]
[355874720,1741668635987,-500.0,0.0004624,2]
[355874721,1741668635996,-500.0,0.0004624,2]
[355874722,1741668636005,-500.0,0.0004624,2]
[355874723,1741668636014,-500.0,0.0004624,2]
[355874724,1741668636024,-500.0,0.0004624,2]
[355874725,1741668636034,-500.0,0.0004624,2]
[355874728,1741668636221,-488.75158811,0.0004624,2]
[355874729,1741668636231,-500.0,0.0004624,2]
[355874730,1741668636241,-500.0,0.0004624,2]
[355874731,1741668636251,-500.0,0.0004624,2]
[355874732,1741668636261,-500.0,0.0004624,2]
[355874733,1741668636271,-199.00644665,0.00046242,120]
[355874734,1741668636281,-564.63591066,0.00046242,31]
[355874735,1741668636292,-482.7918626,0.00046242,120]
[355874736,1741668636304,-185.52834469,0.00046242,31]
[355874737,1741668636313,-4386.860277,0.00046242,3]
[355874738,1741668636323,-2868.07769628,0.00046242,120]
[355874745,1741668638442,-3831.25230372,0.00046242,120]
[355874746,1741668638452,-109588.97396353,0.00046243,2]
[355874747,1741668638500,-486.93461743,0.00046243,2]
[355875010,1741668640890,-28.35006579,0.00046233,10]
[355875033,1741668641097,-1819.79993421,0.00046233,10]
[355875035,1741668641107,-500.0,0.00046239,2]
[355875037,1741668641117,-500.0,0.00046239,2]
[355875039,1741668641127,-220.97239868,0.00046239,2]
[355875041,1741668641136,-111924.09141904,0.00046243,2]
[355875043,1741668641146,-160.0,0.00046256,5]
[355875045,1741668641155,-622.2,0.0004627,2]
[355875047,1741668641164,-2001.48560724,0.0004629,4]
[355875049,1741668641174,-269.39348753,0.000463,10]
[355875051,1741668641183,-753.1,0.000463,30]
[355875053,1741668641194,-500.0,0.000463,10]
[355875055,1741668641203,-500.0,0.000463,7]
[355875057,1741668641214,-513.81120663,0.000463,10]
[355875059,1741668641227,-160.3599598,0.000463,5]
[355875061,1741668641237,-460.2516494,0.000463,10]
[355875063,1741668641246,-500.0,0.000463,10]
[355875065,1741668641258,-500.0,0.000463,10]
[355875067,1741668641268,-570.80351571,0.000463,7]
[355875069,1741668641277,-501.85629482,0.000463,7]
[355875071,1741668641287,-408.15,0.000463,30]
[355875073,1741668641297,-229.54,0.000463,30]
[355875075,1741668641307,-645.2214,0.00046325,2]
[355875077,1741668641316,-215.2,0.00046332,30]
[355875079,1741668641325,-669.0945918,0.0004638,2]
[355875081,1741668641335,-693.8510917,0.00046435,2]
[355875083,1741668641344,-719.52358209,0.0004649,2]
[355875085,1741668641354,-178.582908,0.00046532,2]
[355875087,1741668641364,-746.14595463,0.00046545,2]
[355875089,1741668641373,-500.0,0.00046575,120]
[355875091,1741668641383,-661.52,0.00046575,60]
[355875092,1741668641393,-500.0,0.00046575,120]
[355875093,1741668641403,-773.75335495,0.000466,2]
[355875094,1741668641412,-645.96593199,0.00046606,2]
[355875096,1741668641422,-802.38222908,0.00046655,2]
[355875098,1741668641432,-302.06369919,0.00046682,19]
[355875100,1741668641442,-500.0,0.000467,90]
[355875102,1741668641451,-500.0,0.000467,90]
[355875104,1741668641460,-832.07037156,0.0004671,2]
[355875105,1741668641470,-322.13716227,0.00046736,2]
[355875106,1741668641480,-862.8569753,0.00046765,2]
[355875107,1741668641490,-500.0,0.000468,90]
[355875108,1741668641500,-500.0,0.000468,90]
[355875109,1741668641509,-894.78268339,0.0004682,2]
[355875110,1741668641519,-500.0,0.00046849,120]
[355875111,1741668641530,-661.52,0.00046849,60]
[355875112,1741668641540,-927.88964268,0.00046875,2]
[355875113,1741668641550,-500.0,0.000469,90]
[355875114,1741668641560,-500.0,0.000469,90]
[355875115,1741668641569,-500.0,0.000469,90]
[355875116,1741668641579,-500.0,0.000469,90]
[355875117,1741668641589,-500.0,0.000469,90]
[355875118,1741668641599,-500.0,0.000469,90]
[355875119,1741668641609,-500.0,0.000469,90]
[355875120,1741668641619,-500.0,0.000469,90]
[355875121,1741668641628,-240.0,0.000469,90]
[355875122,1741668641638,-160.0,0.0004704,6]
[355875123,1741668641648,-158.73874598,0.0004708,2]
[355875124,1741668641657,-408.15,0.000471,30]
[355875125,1741668641667,-229.54,0.000471,30]
[355875126,1741668641676,-500.0,0.00047123,120]
[355875127,1741668641835,-661.52,0.00047123,60]
[355875128,1741668641846,-500.0,0.00047123,120]
[355875129,1741668641855,-6699.33,0.00047338,120]
[355875130,1741668641864,-500.0,0.00047397,120]
[355875131,1741668641874,-661.52,0.00047397,60]
[355875132,1741668641883,-159.89199501,0.00047452,120]
[355875133,1741668641892,-500.0,0.00047479,120]
[355875134,1741668641902,-500.0,0.00047479,120]
[355875135,1741668641911,-500.0,0.00047479,120]
[355875136,1741668641920,-500.0,0.00047479,120]
[355875137,1741668641929,-500.0,0.00047479,120]
[355875138,1741668641939,-500.0,0.00047479,120]
[355875139,1741668641948,-500.0,0.00047479,120]
[355875140,1741668641957,-500.0,0.00047479,120]
[355875141,1741668641967,-500.0,0.00047479,120]
[355875142,1741668641977,-627.28,0.00047479,120]
[355875143,1741668641987,-2001.48560724,0.00047496,4]
[355875144,1741668641996,-151.0,0.000475,21]
[355875145,1741668642005,-872.04,0.00047506,120]
[355875146,1741668642015,-872.04,0.00047506,120]
[355875147,1741668642025,-872.04,0.00047506,120]
[355875148,1741668642035,-872.04,0.00047506,120]
[355875149,1741668642045,-872.04,0.00047506,120]
[355875150,1741668642054,-190.34638335,0.00047506,120]
[355875169,1741668643697,-681.69361665,0.00047506,120]
[355875170,1741668643707,-872.04,0.00047506,120]
[355875171,1741668643716,-872.04,0.00047506,120]
[355875172,1741668643726,-872.04,0.00047506,120]
[355875173,1741668643736,-872.04,0.00047506,120]
[355875174,1741668643746,-872.04,0.00047506,120]
[355875175,1741668643756,-460.06459638,0.00047506,120]
[355875259,1741668646697,-411.97540362,0.00047506,120]
[355875260,1741668646707,-872.04,0.00047506,120]
[355875261,1741668646717,-872.04,0.00047506,120]
[355875262,1741668646727,-872.04,0.00047506,120]
[355875263,1741668646736,-872.04,0.00047506,120]
[355875264,1741668646746,-872.04,0.00047506,120]
[355875265,1741668646756,-872.04,0.00047506,120]
[355875266,1741668646766,-872.04,0.00047506,120]
[355875267,1741668646776,-872.04,0.00047506,120]
[355875268,1741668646787,-872.04,0.00047506,120]
[355875269,1741668646797,-872.04,0.00047506,120]
[355875270,1741668646807,-872.04,0.00047506,120]
[355875271,1741668646817,-872.04110254,0.00047506,120]
[355875272,1741668646826,-16632.81538612,0.00047619,2]
[355875273,1741668646836,-500.0,0.00047671,120]
[355875274,1741668646846,-661.52,0.00047671,60]
[355875275,1741668646855,-500.0,0.00047671,120]
[355875276,1741668646865,-8766.03,0.00047699,9]
[355875277,1741668646874,-215.2,0.00047702,30]
[355875278,1741668646884,-200.8803919,0.00047733,30]
[355875279,1741668646893,-166.0,0.00047733,30]
[355875280,1741668646902,-166.0,0.00047733,30]
[355875281,1741668646912,-166.0,0.00047733,30]
[355875282,1741668646921,-168.0,0.00047733,30]
[355875283,1741668646931,-316.0,0.00047733,30]
[355875284,1741668646940,-316.0,0.00047733,30]
[355875285,1741668646949,-316.0,0.00047733,30]
[355875286,1741668646959,-316.0,0.00047733,30]
[355875287,1741668646968,-316.0,0.00047733,30]
[355875288,1741668646978,-316.0,0.00047733,30]
[355875289,1741668646987,-316.0,0.00047733,30]
[355875290,1741668646998,-316.0,0.00047733,30]
[355875291,1741668647009,-2001.48560724,0.00047791,4]
[355875292,1741668647019,-151.0,0.000478,26]
[355875293,1741668647028,-166.0,0.00047801,30]
[355875294,1741668647039,-168.0,0.00047801,30]
[355875295,1741668647048,-168.0,0.00047801,30]
[355875296,1741668647058,-299.20946297,0.00047801,30]
[355875297,1741668647068,-352.0,0.00047801,30]
[355875298,1741668647077,-352.0,0.00047801,30]
[355875299,1741668647086,-352.0,0.00047801,30]
[355875300,1741668647096,-352.0,0.00047801,30]
[355875301,1741668647106,-352.0,0.00047801,30]
[355875302,1741668647115,-352.0,0.00047801,30]
[355875303,1741668647124,-352.0,0.00047801,30]
[355875304,1741668647135,-352.0,0.00047801,30]
[355875305,1741668647144,-316.0,0.00047801,30]
[355875306,1741668647154,-352.0,0.00047801,30]
[355875307,1741668647164,-316.0,0.00047801,30]
[355875308,1741668647173,-352.0,0.00047801,30]
[355875309,1741668647183,-316.0,0.00047801,30]
[355875310,1741668647193,-316.0,0.00047801,30]
[355875311,1741668647203,-352.0,0.00047801,30]
[355875312,1741668647214,-316.0,0.00047801,30]
[355875313,1741668647225,-352.0,0.00047801,30]
[355875314,1741668647236,-316.0,0.00047801,30]
[355875315,1741668647246,-352.0,0.00047801,30]
[355875316,1741668647256,-316.0,0.00047801,30]
[355875317,1741668647267,-352.0,0.00047801,30]
[355875318,1741668647277,-316.0,0.00047801,30]
[355875319,1741668647289,-352.0,0.00047801,30]
[355875320,1741668647299,-316.0,0.00047801,30]
[355875321,1741668647308,-352.0,0.00047801,30]
[355875322,1741668647318,-316.0,0.00047801,30]
[355875323,1741668647328,-352.0,0.00047801,30]
[355875324,1741668647337,-316.0,0.00047801,30]
[355875325,1741668647347,-352.0,0.00047801,30]
[355875326,1741668647357,-352.0,0.00047801,30]
[355875327,1741668647366,-316.0,0.00047801,30]
[355875328,1741668647376,-352.0,0.00047801,30]
[355875329,1741668647385,-316.0,0.00047801,30]
[355875330,1741668647395,-352.0,0.00047801,30]
[355875331,1741668647405,-316.0,0.00047801,30]
[355875332,1741668647415,-352.0,0.00047801,30]
[355875333,1741668647424,-316.0,0.00047801,30]
[355875334,1741668647434,-352.0,0.00047801,30]
[355875335,1741668647444,-316.0,0.00047801,30]
[355875336,1741668647454,-352.0,0.00047801,30]
[355875337,1741668647464,-316.0,0.00047801,30]
[355875338,1741668647473,-352.0,0.00047801,30]
[355875339,1741668647483,-316.0,0.00047801,30]
[355875340,1741668647492,-352.0,0.00047801,30]
[355875341,1741668647502,-316.0,0.00047801,30]
[355875342,1741668647511,-352.0,0.00047801,30]
[355875343,1741668647521,-316.0,0.00047801,30]
[355875344,1741668647531,-352.0,0.00047801,30]
[355875345,1741668647542,-352.0,0.00047801,30]
[355875346,1741668647552,-316.0,0.00047801,30]
[355875347,1741668647562,-352.0,0.00047801,30]
[355875348,1741668647572,-316.0,0.00047801,30]
[355875349,1741668647582,-352.0,0.00047801,30]
[355875350,1741668647591,-316.0,0.00047801,30]
[355875351,1741668647601,-352.0,0.00047801,30]
[355875352,1741668647610,-316.0,0.00047801,30]
[355875353,1741668647620,-316.0,0.00047801,30]
[355875354,1741668647629,-352.0,0.00047801,30]
[355875355,1741668647639,-316.0,0.00047801,30]
[355875356,1741668647649,-352.0,0.00047801,30]
[355875357,1741668647659,-316.0,0.00047801,30]
[355875358,1741668647669,-352.0,0.00047801,30]
[355875359,1741668647678,-316.0,0.00047801,30]
[355875360,1741668647688,-352.0,0.00047801,30]
[355875361,1741668647697,-316.0,0.00047801,30]
[355875362,1741668647707,-352.0,0.00047801,30]
[355875363,1741668647717,-316.0,0.00047801,30]
[355875364,1741668647726,-352.0,0.00047801,30]
[355875365,1741668647735,-316.0,0.00047801,30]
[355875366,1741668647746,-352.0,0.00047801,30]
[355875367,1741668647756,-316.0,0.00047801,30]
[355875368,1741668647766,-352.0,0.00047801,30]
[355875369,1741668647775,-316.0,0.00047801,30]
[355875370,1741668647786,-352.0,0.00047801,30]
[355875371,1741668647796,-316.0,0.00047801,30]
[355875372,1741668647805,-352.0,0.00047801,30]
[355875373,1741668647815,-316.0,0.00047801,30]
[355875374,1741668647824,-316.0,0.00047801,30]
[355875375,1741668647834,-352.0,0.00047801,30]
[355875376,1741668647845,-352.0,0.00047801,30]
[355875377,1741668647854,-352.0,0.00047801,30]
[355875378,1741668647864,-352.0,0.00047801,30]
[355875379,1741668647873,-352.0,0.00047801,30]
[355875380,1741668647883,-352.0,0.00047801,30]
[355875382,1741668647893,-352.0,0.00047801,30]
[355875398,1741668648080,-352.0,0.00047801,30]
[355875400,1741668648092,-352.0,0.00047801,30]
[355875402,1741668648103,-352.0,0.00047801,30]
[355875404,1741668648114,-352.0,0.00047801,30]
[355875406,1741668648124,-160.0,0.00047824,7]
[355875408,1741668648135,-205.75518274,0.00047855,2]
[355875410,1741668648146,-540.76013146,0.00047859,2]
[355875412,1741668648157,-500.0,0.00047879,10]
[355875414,1741668648167,-2001.48560724,0.0004789,4]
[355875416,1741668648178,-35272.27241183,0.000479,30]
[355875418,1741668648189,-408.15,0.000479,30]
[355875420,1741668648199,-229.54,0.000479,30]
[355875422,1741668648210,-151.0,0.000479,22]
[355875424,1741668648223,-1032.544579,0.000479,56]
[355875426,1741668648233,-2020.24178586,0.00047945,120]
[355875428,1741668648243,-661.52,0.00047945,60]
[355875430,1741668648253,-6000.0,0.00047945,10]
[355875432,1741668648266,-2001.48560724,0.00047989,4]
[355875434,1741668648277,-4002.97121448,0.0004799,4]
[355875436,1741668648288,-5476.03248088,0.00047999,120]
[355875438,1741668648299,-5476.03248088,0.00047999,120]
[355875440,1741668648309,-5476.03248088,0.00047999,120]
[355875442,1741668648319,-5476.03248088,0.00047999,120]
[355875444,1741668648329,-5476.03248088,0.00047999,120]
[355875446,1741668648338,-5476.03248088,0.00047999,120]
[355875448,1741668648348,-5476.03248088,0.00047999,120]
[355875450,1741668648358,-5476.03248088,0.00047999,120]
[355875452,1741668648367,-5476.03248088,0.00047999,120]
[355875454,1741668648377,-5476.03248088,0.00047999,120]
[355875456,1741668648387,-151.0,0.00048,29]
[355875458,1741668648396,-121224.25903109,0.00048,30]
[355875620,1741669030262,160.0,0.0002,3]
[355875630,1741669629141,-2967.70885635,0.00032,30]
[355875631,1741669650092,-742.12197818,0.00032,30]
[355875641,1741669745093,-411.97880398,0.000299,2]
[355875642,1741669745116,-3011.57229399,0.00032,30]
[355875645,1741669754125,-3347.59687148,0.00032,30]
[355875646,1741669754150,-1333.67045415,0.000329,6]
[355875647,1741669754176,-411.97880398,0.000349,2]
[355875648,1741669754199,-168.032375,0.0003589,2]
[355875649,1741669754223,-411.97880398,0.000399,2]
[355875650,1741669754245,-168.032375,0.00041211,2]
[355875651,1741669763107,-158.5509804,0.00041428,120]
[355875652,1741669763129,-177.18405949,0.00042068,120]
[355875656,1741669831904,-198.38506888,0.00046033,2]
[355875657,1741669831916,-387.13715101,0.0004607,2]
[355875658,1741669831925,-160.0,0.00046113,2]
[355875660,1741669831935,-377.13208451,0.00046114,2]
[355875661,1741669831944,-151.0,0.00046115,2]
[355875662,1741669831954,-1000.0,0.00046115,2]
[355875663,1741669831964,-600.0,0.00046115,2]
[355875664,1741669831974,-3602.67409304,0.00046133,4]
[355875665,1741669831984,-891.28,0.00046133,10]
[355875666,1741669831994,-1002.81,0.00046141,120]
[355875667,1741669832003,-337.95430382,0.00046142,120]
[355875668,1741669832013,-532.06548321,0.00046142,31]
[355875669,1741669832022,-188.7830595,0.00046142,120]
[355875670,1741669832031,-500.0,0.00046142,2]
[355875671,1741669832041,-500.0,0.00046142,2]
[355875672,1741669832051,-500.0,0.00046142,2]
[355875673,1741669832060,-500.0,0.00046142,2]
[355875674,1741669832070,-500.0,0.00046142,2]
[355875675,1741669832080,-500.0,0.00046142,2]
[355875676,1741669832089,-500.0,0.00046142,2]
[355875677,1741669832099,-500.0,0.00046142,2]
[355875678,1741669832109,-500.0,0.00046142,2]
[355875679,1741669832118,-500.0,0.00046142,2]
[355875680,1741669832128,-500.0,0.00046142,2]
[355875681,1741669832137,-500.0,0.00046142,2]
[355875682,1741669832147,-500.0,0.00046142,2]
[355875683,1741669832156,-500.0,0.00046142,2]
[355875684,1741669832166,-500.0,0.00046142,2]
[355875685,1741669832176,-500.0,0.00046142,2]
[355875686,1741669832186,-500.0,0.00046142,2]
[355875687,1741669832195,-370.69509801,0.00046142,2]
[355875688,1741669832205,-500.0,0.00046142,2]
[355875689,1741669832215,-462.74414582,0.00046142,2]
[355875690,1741669832225,-6141.05,0.00046142,120]
[355875691,1741669832234,-3702.70005549,0.00046143,2]
[355875775,1741669846084,-82.45799757,0.00046133,10]
[355875776,1741669846110,-1309.12200243,0.00046133,10]
[355875777,1741669846133,-218297.29994451,0.00046143,2]
[355875778,1741669846153,-849.41623339,0.0004617,2]
[355875779,1741669846175,-187.42,0.000462,30]
[355875780,1741669846198,-677.79,0.000462,30]
[355875781,1741669846213,-503.77453543,0.000462,10]
[355875782,1741669846230,-502.09540554,0.000462,10]
[355875783,1741669846251,-171.15914663,0.00046242,2]
[355875784,1741669846269,-200.0,0.00046242,2]
[355875785,1741669846288,-200.0,0.00046242,2]
[355875786,1741669846309,-200.0,0.00046242,2]
[355875787,1741669846328,-200.0,0.00046242,2]
[355875788,1741669846345,-200.0,0.00046242,2]
[355875789,1741669846362,-200.0,0.00046242,2]
[355875790,1741669846385,-200.0,0.00046242,2]
[355875791,1741669846404,-200.0,0.00046242,2]
[355875792,1741669846423,-200.0,0.00046242,2]
[355875793,1741669846441,-200.0,0.00046242,2]
[355875794,1741669846458,-301.91744696,0.00046242,2]
[355875795,1741669846476,-197.26,0.00046242,30]
[355875796,1741669846494,-151.0,0.00046243,120]
[355875797,1741669846510,-151.0,0.00046243,120]
[355875798,1741669846528,-387.13715099,0.00046525,2]
[355875799,1741669846546,-168.032375,0.00046532,2]
[355875800,1741669846563,-533.07032974,0.00046575,120]
[355875801,1741669846583,-500.0,0.00046575,120]
[355875802,1741669846601,-500.0,0.00046575,60]
[355875803,1741669846621,-156.587,0.00046663,2]
[355875804,1741669846639,-500.0,0.00046849,60]
[355875805,1741669846659,-387.13715099,0.0004698,2]
[355875806,1741669846678,-24999.53675,0.00046999,30]
[355875807,1741669846697,-1000.0,0.00047,120]
[355875808,1741669846716,-5000.0,0.00047,120]
[355875809,1741669846733,-5000.0,0.00047,120]
[355875810,1741669846752,-5000.0,0.00047,120]
[355875811,1741669846769,-3370.0,0.00047,120]
[355875812,1741669846787,-500.0,0.000471,120]
[355875813,1741669846803,-500.0,0.000471,120]
[355875814,1741669846820,-500.0,0.000471,120]
[355875815,1741669846837,-500.0,0.000471,120]
[355875816,1741669846854,-500.0,0.000471,120]
[355875817,1741669846870,-500.0,0.000471,120]
[355875818,1741669846891,-500.0,0.000471,120]
[355875819,1741669846909,-500.0,0.000471,120]
[355875820,1741669846927,-500.0,0.000471,120]
[355875821,1741669846944,-500.0,0.000471,120]
[355875822,1741669846961,-500.0,0.000471,120]
[355875823,1741669846978,-500.0,0.000471,120]
[355875824,1741669846995,-500.0,0.000471,120]
[355875825,1741669847011,-500.0,0.000471,120]
[355875826,1741669847027,-189.11666829,0.000471,120]
[355875827,1741669847044,-500.0,0.00047123,60]
[355875828,1741669847059,-162.380719,0.00047211,2]
[355875829,1741669847076,-900.66852326,0.00047228,4]
[355875830,1741669847092,-6141.05,0.00047238,120]
[355875831,1741669847109,-613.6586695,0.00047318,2]
[355875832,1741669847126,-500.0,0.00047397,60]
[355875833,1741669847143,-387.13715099,0.00047435,2]
[355875834,1741669847160,-4652.7930799,0.00047481,4]
[355875835,1741669847172,-613.6586696,0.00047526,2]
[355875836,1741669847183,-155.3619476,0.00047554,30]
[355875837,1741669847193,-155.3619476,0.00047554,30]
[355875838,1741669847202,-197.26,0.00047612,30]
[355875839,1741669847212,-500.0,0.00047671,60]
[355875840,1741669847222,-168.3888056,0.00047759,2]
[355875841,1741669847232,-352.0,0.0004777,30]
[355875842,1741669847241,-352.0,0.0004777,30]
[355875843,1741669847251,-203.6804522,0.0004777,30]
[355875844,1741669847260,-352.0,0.0004777,30]
[355875845,1741669847613,-352.0,0.0004777,30]
[355875846,1741669847657,-352.0,0.0004777,30]
[355875847,1741669847676,-352.0,0.0004777,30]
[355875848,1741669847686,-352.0,0.0004777,30]
[355875849,1741669847696,-490.74357343,0.0004777,30]
[355875850,1741669847706,-1280.0,0.000478,120]
[355875851,1741669847715,-677.79,0.000478,30]
[355875852,1741669847725,-151.0,0.000478,29]
[355875853,1741669847735,-55555.0,0.000478,120]
[355875854,1741669847745,-500.0,0.00047879,10]
[355875855,1741669847754,-900.66852326,0.0004788,4]
[355875856,1741669847763,-900.66852326,0.0004788,4]
[355875857,1741669847773,-9498.25520361,0.0004789,2]
[355875858,1741669847782,-900.66852326,0.0004789,4]
[355875859,1741669847792,-387.13715099,0.0004789,2]
[355875860,1741669847801,-500.0,0.0004789,10]
[355875861,1741669847811,-3000.0,0.0004789,2]
[355875862,1741669847821,-6072.08913615,0.0004789,120]
[355875863,1741669847831,-56848.68054649,0.000479,120]
[355875864,1741669847841,-30016.673225,0.000479,2]
[355875865,1741669847850,-500.0,0.00047945,60]
[355875866,1741669847860,-3045.23371464,0.00047945,10]
[355875867,1741669847873,-900.66852326,0.00047963,4]
[355875868,1741669847882,-502.21569284,0.00047973,10]
[355875869,1741669847893,-608.62514039,0.00047973,10]
[355875870,1741669847902,-301.07802956,0.00047973,10]
[355875871,1741669847911,-160.40333613,0.00047973,10]
[355875872,1741669847920,-506.38430744,0.00047973,10]
[355875873,1741669847930,-504.35425465,0.00047973,7]
[355875874,1741669847939,-500.0,0.00047973,10]
[355875875,1741669847949,-502.8663198,0.00047973,10]
[355875876,1741669847959,-206.13843323,0.00047973,7]
[355875877,1741669847969,-500.0,0.00047973,10]
[355875878,1741669847978,-500.0,0.00047973,10]
[355875879,1741669847988,-313.90537551,0.00047973,10]
[355875880,1741669847997,-160.39544876,0.00047973,10]
[355875881,1741669848006,-299.14542031,0.00047973,10]
[355875882,1741669848016,-160.41641839,0.00047973,10]
[355875883,1741669848026,-160.41464031,0.00047973,10]
[355875884,1741669848035,-500.0,0.00047973,10]
[355875885,1741669848045,-160.39503563,0.00047973,10]
[355875886,1741669848055,-500.0,0.00047973,10]
[355875887,1741669848065,-500.0,0.00047973,10]
[355875888,1741669848074,-160.40333842,0.00047973,10]
[355875889,1741669848085,-160.23977453,0.00047973,10]
[355875890,1741669848095,-159.39769429,0.00047973,10]
[355875891,1741669848105,-160.40019752,0.00047973,10]
[355875892,1741669848115,-500.0,0.00047973,10]
[355875893,1741669848128,-505.38965201,0.00047973,10]
[355875894,1741669848138,-622.48050158,0.00047973,10]
[355875895,1741669848147,-500.0,0.00047973,7]
[355875896,1741669848157,-500.0,0.00047973,10]
[355875897,1741669848167,-500.0,0.00047973,2]
[355875898,1741669848177,-501.46941657,0.00047973,10]
[355875899,1741669848187,-500.0,0.00047973,10]
[355875900,1741669848197,-418.25750934,0.00047973,10]
[355875901,1741669848207,-252.28888901,0.00047973,10]
[355875902,1741669848216,-176.8122789,0.00047973,10]
[355875903,1741669848226,-628.55364859,0.00047973,10]
[355875904,1741669848236,-268.81984547,0.00047973,10]
[355875905,1741669848246,-500.0,0.00047973,10]
[355875906,1741669848256,-500.0,0.00047973,10]
[355875907,1741669848265,-501.21389799,0.00047973,5]
[355875908,1741669848275,-151.57515892,0.00047973,10]
[355875909,1741669848284,-480.63167219,0.00047973,10]
[355875910,1741669848294,-500.0,0.00047973,10]
[355875911,1741669848304,-502.8339842,0.00047973,10]
[355875912,1741669848313,-210.8573301,0.00047973,10]
[355875913,1741669848323,-500.0,0.00047973,10]
[355875914,1741669848332,-404.48852422,0.00047973,10]
[355875915,1741669848342,-1801.33704652,0.0004798,4]
[355875916,1741669848352,-4503.3426163,0.0004798,4]
[355875917,1741669848361,-874.32745947,0.0004798,120]
[355875918,1741669848374,-1000.0,0.0004798,120]
[355875919,1741669848383,-1000.0,0.0004798,120]
[355875920,1741669848393,-3602.67409304,0.0004798,4]
[355875921,1741669848403,-98587.1204662,0.0004799,47]
[355875922,1741669848413,-93577.08404665,0.0004799,36]
[355875924,1741669911831,250.0,4.521e-05,120]
[355875928,1741670739110,-157.0,0.00035,120]
[355875929,1741670739135,-158.697243,0.0003589,2]
[355875930,1741670739161,-158.697243,0.00041837,2]
[355875931,1741670739186,-974.95432046,0.000419,9]